Cogmind - Beta 16 @@@ ROGUE MODE // 2025.12.03 @ 22:37:07 Player: Vyckalino Result: Destroyed by Y-45 Defender with Beam Rifle Performance ------------- Evolutions (2) 1000 Regions Visited (4) 800 Robots Destroyed (12) 60 Value Destroyed (262) 262 Prototype IDs (0) 0 Alien Tech Used (0) 0 Bonus (0) 0 TOTAL SCORE: 2122 Bonus ------- None Cogmind --------- Core Integrity 0/550 Matter 90/300 Energy 100/100 System Corruption 3% Temperature Cool (9) Movement Core (100) Ox1 Location -8/Storage Parts ------- > --- POWER (1) -------- (None) > --- PROPULSION (4) --- (None) > --- UTILITY (4) ------ Small Storage Unit > --- WEAPON (2) ------- (None) > --- INVENTORY (8) ---- Light Ion Engine Improved Hover Unit Improved Hover Unit Trap Scanner Improved Signal Interpreter Terrain Scan Processor Peak State ------------ > --- POWER ------------ Ion Engine > --- PROPULSION ------- Airjet Airjet Airjet > --- UTILITY ---------- Small Storage Unit ECM Suite Light Armor Plating > --- WEAPON ----------- Mini Grenade Launcher Mini Grenade Launcher > --- INVENTORY -------- Light Ion Engine Improved Hover Unit Improved Hover Unit Improved Hover Unit Improved Hover Unit Terrain Scan Processor Mini Grenade Launcher Mini Grenade Launcher [Rating: 18] Favorites ----------- Power Ion Engine Engine Ion Engine Propulsion Airjet Treads Light Treads Hover Unit Airjet Flight Unit Flight Unit Utility Small Storage Unit Device ECM Suite Storage Small Storage Unit Protection Light Armor Plating Weapon Mini Grenade Launcher Ballistic Gun Assault Rifle Launcher Mini Grenade Launcher Build | -11 -10 -9 -8 -8 ------- Run | Yrd Mat Mat Mat Sto Slots Evolved 4 | . . 2 2 . Power . | . . . . . Propulsion 2 | . . 1 1 . Utility 2 | . . 1 1 . Weapon . | . . . . . Parts Attached 25 | 6 11 6 . 2 Power 3 | 1 1 1 . . Engine 3 | 1 1 1 . . Core . | . . . . . Reactor . | . . . . . Propulsion 11 | 2 4 5 . . Treads 2 | 2 . . . . Leg . | . . . . . Wheel . | . . . . . Hover 7 | . 2 5 . . Flight 2 | . 2 . . . Utility 4 | 1 3 . . . Device 1 | . 1 . . . Storage 2 | 1 1 . . . Processor . | . . . . . Hackware . | . . . . . Protection 1 | . 1 . . . Artifact . | . . . . . Weapon 7 | 2 3 . . 2 Energy Gun . | . . . . . Energy Cannon . | . . . . . Ballistic Gun 2 | 2 . . . . Ballistic Cannon . | . . . . . Launcher 5 | . 3 . . 2 Special Weapon . | . . . . . Impact Weapon . | . . . . . Slashing Weapon . | . . . . . Piercing Weapon . | . . . . . Special Melee Weapon . | . . . . . Unidentified Prototypes . | . . . . . Parts Lost 11 | . . 4 . 7 Power 1 | . . . . 1 Propulsion 5 | . . 2 . 3 Utility 2 | . . 1 . 1 Weapon 3 | . . 1 . 2 Highest Loss Streak 7 | . . 4 . 7 To Critical Strikes . | . . . . . Average Backups 6 | 3 5 6 7 7 Power . | . 1 1 1 . Propulsion 2 | 2 2 2 2 2 Utility 1 | . . 1 2 3 Weapon 1 | 1 1 2 2 1 Tool/Special . | . . . . . Unused Backups 12 | . 6 . . 6 Power . | . . . . . Propulsion 6 | . 5 . . 1 Utility 5 | . . . . 5 Weapon 1 | . 1 . . . Tool/Special . | . . . . . Average Slot Usage (%) 74 | . 77 97 63 49 Engine 10 | . 14 11 9 6 Treads 3 | . 8 . . . Hover 19 | . 7 32 27 19 Flight 3 | . 10 . . . Device 7 | . 2 11 9 7 Storage 8 | . 7 11 9 9 Protection 3 | . 3 9 . . Ballistic Gun 2 | . 6 . . . Launcher 14 | . 15 20 9 7 Peak Build Rating 18 | 6 12 18 14 15 Average Rating 10 | 3 6 15 14 10 On Entrance 9 | . 6 12 14 14 Avg Prop Armor Cover (%) . | . . . . . Naked Turns . | . . . . . Heaviest Build 17 | 14 15 17 13 13 Greatest Support 40 | 40 40 24 23 23 Greatest Overweight (x) 4 | 3 4 . . 2 Average Overweight (x) . | . . . . . Largest Inventory Capacity 8 | 8 8 8 8 8 Average Capacity 7 | 7 6 8 8 8 Most Carried 8 | 6 8 8 8 8 Average Carried 6 | 3 5 6 7 7 Final Capacity 8 | 8 8 8 8 8 Final Carried 8 | 5 7 6 8 6 Class Distribution -------------------- 100% | Mutant Dominant Class ---------------- Mutant | -10/Materials Mutant | -9/Materials Mutant | -8/Materials Mutant | -8/Storage Resources | -11 -10 -9 -8 -8 ----------- Run | Yrd Mat Mat Mat Sto Matter Collected 409 | 266 23 2 . 118 Remotely . | . . . . . Salvage Created 283 | 87 23 2 . 171 Parts 17 | 3 1 . . 13 Haulers Intercepted . | . . . . . Recyclers Shooed . | . . . . . Parts Field Recycled . | . . . . . Retrieved Matter . | . . . . . Parts Self-Destructed . | . . . . . Prevented . | . . . . . Parts Restored . | . . . . . Kills | -11 -10 -9 -8 -8 ------- Run | Yrd Mat Mat Mat Sto Combat Hostiles Destroyed 7 | . 1 1 . 5 Melee 1 | . . . . 1 AOE 6 | . 1 1 . 4 Classes Destroyed 7 | 1 1 2 . 3 Worker 2 | . . 1 . 1 Builder 1 | . . . . 1 Recycler 1 | 1 . . . . Mechanic 1 | . . . . 1 Swarmer 3 | . . . . 3 Grunt 2 | . 1 . . 1 Sentry 2 | . . 1 . 1 Best Kill Streak 8 | 1 1 2 . 8 Combat Bots Only 5 | . 1 1 . 5 Max Kills in Single Turn 3 | 1 1 1 . 3 Gunslinging . | . . . . . Exploded 2 | . 1 1 . 2 Melee 1 | . . . . 1 Uniques/NPCs Destroyed . | . . . . . Combat | -11 -10 -9 -8 -8 -------- Run | Yrd Mat Mat Mat Sto Hostile Shots Fired 135 | . 2 19 13 101 Missed 54 | . 1 9 9 35 Hits 81 | . 1 10 4 66 Projectile 81 | . 1 10 4 66 Critical Strikes 6 | . . . . 6 Damage Taken 1478 | . 50 537 32 859 Core 673 | . 11 98 . 564 Absorbed by Shields . | . . . . . Core Remaining (%) 90 | 100 95 75 . . Volleys Fired 16 | 2 2 6 . 6 Largest 2 | 1 2 2 . 1 Hottest 60 | 20 50 60 . 30 Shots Fired 24 | 2 3 12 . 7 Gun 3 | 2 1 . . . Cannon . | . . . . . Launcher 21 | . 2 12 . 7 Special . | . . . . . Kinetic 3 | 2 1 . . . Thermal . | . . . . . Explosive 21 | . 2 12 . 7 Electromagnetic . | . . . . . Robot Hit Streak 6 | 2 2 6 . 3 Robot Miss Streak 1 | . 1 1 . 1 Penetration Max . | . . . . . Secondary Targets . | . . . . . Shots Hit Robots 18 | 2 2 9 . 5 Core Hits 27 | 2 1 6 . 18 Critical Kills . | . . . . . Critical Parts Destroyed . | . . . . . Critical Strikes . | . . . . . Melee Attacks . | . . . . . Impact . | . . . . . Slashing . | . . . . . Piercing . | . . . . . Sneak Attacks . | . . . . . Combat Hostiles . | . . . . . Follow-up Attacks . | . . . . . Damage Inflicted 1251 | 22 111 433 . 685 Guns 22 | 22 . . . . Cannons . | . . . . . Explosions 1180 | . 111 433 . 636 Melee . | . . . . . Ramming 49 | . . . . 49 Kinetic 22 | 22 . . . . Thermal . | . . . . . Explosive 1180 | . 111 433 . 636 Electromagnetic . | . . . . . Impact . | . . . . . Slashing . | . . . . . Piercing . | . . . . . Highest Corruption 14 | . . 14 . 3 Average Corruption 4 | . . 9 . 3 Corruption Purged . | . . . . . Corruption Blocked . | . . . . . Effects 3 | . . . . 3 Heat Flow Errors 1 | . . . . 1 Parts Rejected 1 | . . . . 1 Misfires 1 | . . . . 1 Overload Shots . | . . . . . Overflow Damage 54 | . . 6 . 48 Projectiles . | . . . . . Explosions 54 | . . 6 . 48 Melee . | . . . . . Knockbacks . | . . . . . Impact . | . . . . . Kinetic . | . . . . . Secondary . | . . . . . Self-Inflicted Damage 90 | . . 68 . 22 Shots 2 | . . 2 . . Rammed 8 | . . . . 8 Targets Rammed 8 | . . . . 8 Kicked . | . . . . . Crushed . | . . . . . Highest Temperature 164 | . . 54 . 164 Average Temperature 43 | . . 32 . 61 Received Heat Transfer 366 | . 6 54 . 306 Siege Activations . | . . . . . Martial Activations . | . . . . . Shielding Activations . | . . . . . Robots Disrupted . | . . . . . Combat Hostiles . | . . . . . Robots Corrupted . | . . . . . Combat Hostiles . | . . . . . Parts Fried . | . . . . . Impact Corruptions . | . . . . . Robots Melted . | . . . . . Combat Hostiles . | . . . . . Parts Melted . | . . . . . Heat Transferred . | . . . . . Parts Sabotaged . | . . . . . Parts Stolen . | . . . . . Parts Stripped . | . . . . . Power Chain Reactions . | . . . . . Alert | -11 -10 -9 -8 -8 ------- Run | Yrd Mat Mat Mat Sto Maximum Alert Level . | . . . . . Low Security (%) 100 | 100 100 100 100 100 Level 1 . | . . . . . Level 2 . | . . . . . Level 3 . | . . . . . Level 4 . | . . . . . Level 5 . | . . . . . High Security . | . . . . . Max Security . | . . . . . Peak Influence 135 | . 41 111 31 135 Initial 25 | . . . 25 . Average 12 | . 5 18 17 19 Influence Increases 406 | 5 49 132 6 214 Destroy 0b10 Robot/C 140 | . 20 20 . 100 Destroy 0b10 Robot/NC 35 | 5 . 5 . 25 Destroy Leader 40 | . 10 10 . 20 Successful Hack 11 | . . 1 6 4 Disable Machine 30 | . . 15 . 15 Destroy Structure 90 | . 19 36 . 35 Partial Spotted 60 | . . 45 . 15 Influence Decreases 271 | 5 49 71 66 80 Entered New Map 37 | . . . 36 1 Time Decay 154 | 5 49 31 30 39 Lost Part 80 | . . 40 . 40 Squads Dispatched 2 | . 1 . . 1 Investigation 1 | . 1 . . . Extermination . | . . . . . Reinforcement 1 | . . . . 1 Assault . | . . . . . Garrison . | . . . . . Intercept . | . . . . . Searches Triggered . | . . . . . Construction Impeded . | . . . . . Haulers Reinforced . | . . . . . Active Scanning Responses . | . . . . . Cargo Convoy Interrupts . | . . . . . Stealth | -11 -10 -9 -8 -8 --------- Run | Yrd Mat Mat Mat Sto Distress Signals . | . . . . . Communications Jammed . | . . . . . Distress Signals . | . . . . . Times Spotted 30 | . 2 4 4 20 Peak Tracking Total 9 | . 1 2 3 9 Tactical Retreats 5 | . . 1 2 2 ECM-based Alert Blocks 7 | . . 1 3 3 Traps | -11 -10 -9 -8 -8 ------- Run | Yrd Mat Mat Mat Sto Traps Triggered 2 | . 2 . . . Indirectly . | . . . . . Trap Hack Attempts . | . . . . . Triggered . | . . . . . Disarmed . | . . . . . Reprogrammed . | . . . . . Reused . | . . . . . Traps Extracted . | . . . . . Installed . | . . . . . Triggered . | . . . . . Machines | -11 -10 -9 -8 -8 ---------- Run | Yrd Mat Mat Mat Sto Machines Disabled 2 | . . 1 . 1 Max in Single Turn 1 | . . 1 . 1 Machines Repaired . | . . . . . Machines Dismantled . | . . . . . Machines Sabotaged . | . . . . . Overloaded Fab Kills . | . . . . . Hacking | -11 -10 -9 -8 -8 --------- Run | Yrd Mat Mat Mat Sto Machines Accessed 7 | . 2 1 2 2 Terminals 6 | . 1 1 2 2 Fabricators . | . . . . . Repair Stations . | . . . . . Recycling Units 1 | . 1 . . . Scanalyzers . | . . . . . Garrison Access . | . . . . . Total Hacks 19 | . 4 4 7 4 Successful 10 | . 1 2 5 2 Failed 7 | . 3 1 1 2 Catastrophic . | . . . . . Database Lockouts 2 | . . 1 1 . Manual . | . . . . . Terminals 18 | . 3 4 7 4 Fabricators . | . . . . . Repair Stations . | . . . . . Recycling Units 1 | . 1 . . . Scanalyzers . | . . . . . Garrison Access . | . . . . . Terminal Hacks 9 | . . 2 5 2 Record 6 | . . 2 4 . Open Door 1 | . . . . 1 Terminal Index 1 | . . . 1 . Locate Traps 1 | . . . . 1 Fabricator Hacks . | . . . . . Repair Station Hacks . | . . . . . Recycling Unit Hacks 1 | . 1 . . . Retrieve Matter 1 | . 1 . . . Scanalyzer . | . . . . . Garrison Access Hacks . | . . . . . Unauthorized Hacks . | . . . . . Terminals . | . . . . . Fabricators . | . . . . . Repair Stations . | . . . . . Recycling Units . | . . . . . Scanalyzers . | . . . . . Garrison Access . | . . . . . Data Cores Recovered . | . . . . . Used . | . . . . . Hacking Detections 5 | . 1 1 2 1 Full Trace Events . | . . . . . Feedback Events . | . . . . . Feedback Blocked . | . . . . . Robot Schematics Acquired . | . . . . . Robots Built . | . . . . . Authchips . | . . . . . Time . | . . . . . Total Robot Build Rating . | . . . . . Part Schematics Acquired . | . . . . . Parts Built . | . . . . . Authchips . | . . . . . Time . | . . . . . Total Part Build Rating . | . . . . . Part Studies Acquired . | . . . . . Parts Repaired . | . . . . . Time . | . . . . . Parts Recycled . | . . . . . Recycled Matter . | . . . . . Retrieved Matter . | . . . . . Retrieved Components . | . . . . . Parts Scanalyzed . | . . . . . Part Schematics Acquired . | . . . . . Parts Damaged . | . . . . . Bothacking | -11 -10 -9 -8 -8 ------------ Run | Yrd Mat Mat Mat Sto Used RIF Installer . | . . . . . Robots Hacked . | . . . . . Non-combat . | . . . . . Combat . | . . . . . Robot Hacks Applied . | . . . . . Relay Couplers Released . | . . . . . Fabnet Peak Effective % . | . . . . . Robots Rewired . | . . . . . Allies Hacked . | . . . . . Hacks Repelled . | . . . . . Allies | -11 -10 -9 -8 -8 -------- Run | Yrd Mat Mat Mat Sto Total Allies . | . . . . . Largest Group . | . . . . . Highest-Rated Group . | . . . . . Highest-Rated Ally . | . . . . . Total Orders . | . . . . . Ally Attacks . | . . . . . Total Damage . | . . . . . Kills . | . . . . . Allies Corrupted . | . . . . . Allies Melted . | . . . . . Intel | -11 -10 -9 -8 -8 ------- Run | Yrd Mat Mat Mat Sto Active Infowar (turns) 455 | . 50 192 69 144 ECM 455 | . 50 192 69 144 Robot Analysis Total . | . . . . . Derelict Logs Recovered . | . . . . . Drone Launches . | . . . . . Drone Recoveries . | . . . . . Exploration | -11 -10 -9 -8 -8 ------------- Run | Yrd Mat Mat Mat Sto Turns Passed 768 | 96 236 192 69 175 Spaces Moved 885 | 47 311 149 128 250 Core 32 | 15 2 . . 15 Treads 68 | 32 36 . . . Legs . | . . . . . Wheels . | . . . . . Hover 607 | . 95 149 128 235 Flight 178 | . 178 . . . Fastest Speed 37 | 50 37 52 52 52 Average Speed 61 | 155 58 52 52 57 Slowest Speed 250 | 200 250 52 52 150 Overloaded Moves . | . . . . . Propulsion Burnouts . | . . . . . Robots Hopped . | . . . . . Potential Cave-ins 5 | . . 5 . . Cave-ins Triggered 1 | . . 1 . . Exploration Rate (%) 28 | 4 44 18 20 55 Regions Visited 4 Branch Regions 1 Pre-discovered Areas . | . . . . . Known Exits Taken . | . . . . . Unknown Exits Taken 4 | 1 1 1 1 . Scrap Searched . | . . . . . Spaces Dug . | . . . . . Terrain Destroyed 119 | . 17 68 . 34 Melee . | . . . . . Projectile . | . . . . . AOE 119 | . 17 68 . 34 Terrain Rammed . | . . . . . Walls Destroyed . | . . . . . Machines Disabled . | . . . . . Actions | -11 -10 -9 -8 -8 --------- Run | Yrd Mat Mat Mat Sto Total 1092 | 68 370 249 129 276 Wait 92 | 3 5 82 . 2 Move 881 | 46 310 148 127 250 Hop . | . . . . . Pick Up 41 | 11 20 4 2 4 Fast Attach 2 | . 2 . . . Attach 19 | 6 7 4 . 2 Detach 2 | . 2 . . . Swap 7 | . 3 4 . . Drop 24 | . 19 1 . 4 Fire 16 | 2 2 6 . 6 Melee . | . . . . . Ram 8 | . . . . 8 Kick . | . . . . . Crush . | . . . . . Escape Stasis . | . . . . . Rewire . | . . . . . Trap . | . . . . . Miscellaneous . | . . . . . Route ------- -11/Scrapyard -10/Materials (discovered 2 exits: *Mat x2) -9/Materials -8/Materials -8/Storage History --------- Turn | Location | Event 27 | -11/Scrapyard | Discovered new exit (range 16) 97 | -11/Scrapyard | Entered Materials 220 | -10/Materials | Discovered new exit (range 12) 242 | -10/Materials | Discovered new exit (range 16) 316 | -10/Materials | Build established: Mutant 333 | -10/Materials | Entered another Materials area 333 | -9/Materials | Evolved 2 slots: Propulsion x1, Utility x1 412 | -9/Materials | Central database locked down 503 | -9/Materials | Crushed by falling debris 503 | -9/Materials | System corruption reached 10% 518 | -9/Materials | Discovered new exit (range 15) 525 | -9/Materials | Entered another Materials area 525 | -8/Materials | Evolved 2 slots: Propulsion x1, Utility x1 534 | -8/Materials | Lost 4 parts (2n1u1w) 543 | -8/Materials | Central database locked down 585 | -8/Materials | Discovered new exit (range 16) 594 | -8/Materials | Entered Storage 750 | -8/Storage | Core integrity fell below 50% 763 | -8/Storage | Core integrity fell below 20% 769 | -8/Storage | Destroyed by Y-45 Defender with Beam Rifle Last Messages --------------- 00751_ K-01 Serf collects debris. 00752_ Critical hit (Burn: +37). 00752_ Transfer Shaft disabled. 00753_ Mni. Grenade Launcher destroyed. 00754_ K-01 Serf collects debris. 00755_ Y-45 Defender destroyed. 00756_ The unstable cave ceiling collapses. 00757_ K-01 Serf collects debris. 00758_ System corrupted: Mni. Grenade Launcher rejected. 00761_ U-05 Engineer lays Concrete. 00761_ Critical hit (Burn: +37). 00761_ K-01 Serf collects debris. 00762_ U-05 Engineer builds a Door. 00762_ K-01 Serf collects debris. 00766_ Critical hit (Burn: +37). 00767_ U-05 Engineer builds a Wall. 00768_ K-01 Serf collects debris. 00768_ S-10 Pest destroyed. 00769_ The unstable cave ceiling collapses. Map ----- +----------------------------------------------------+ | | | | | | | | | | | | | | | | | | | | | ?????????????????????????????#??????###?????????## | | ????????????????????????????? ????### ###??????? | | ??????????????????????????? #???# # #??????# " | | ??????????????????????????""" ##### ######## " | | ????????????????????????? """ + u + " | | ??????????????????????????" " ## ######## | | ?????????????????????????? ## ### ###????# " | | ??????????????????????????? + ## " | | ??????????????????????????? # ## " | | ????????????+####T#######+## [ # ## | | ???????????? = [= g= a ##/# | | ???????????? # = ## / | | ???????????? s YY # | | ?????????????###########s # # | | ???????????????????????#* * ] # # # | | ???????????????????????# @k# #+######### # | | ???????????????????????# # = / # | | ???????????????????????# # ] # | | ???????????????????????# # # ########/## | | ???????????????????????# # ! %= # #?????? | | ???????????????????????# # * # #??????" ? | | ???????????????????????+ ########## ### """ ?? | | ???????????????????????# / """ ?? | | ???????????????????????##+##?+#######+#### | | ????????????????????????????????# #??""" | | ????????????????????????????????# #??????? | | ????????????????????????????????# #???????? | | ????????????????????????????????# #???????? | | ????????????????????????????????# #???????? | | ????????????????????????????????# #???????? | | ????????????????????????????????# #???????? | | ????????????????????????????????# #???????? | | ????????????????????????????????# #???????? | | ????????????????????????????????########+#???????? | | ??????????????????????????????########## #???????? | | ??????????????????????????????# # #???????? | | ??????????????????????????????# # #???????? | | ??????????????????????????????# """ # ######### | | ??????????????????????????????# "?"""" # | | ??????????????????????????????# "????" + | +----------------------------------------------------+ Best States ------------- Heat Dissipation 31 Energy Generation 10 Energy Capacity 250 Matter Stores 300 Matter Capacity 300 Sight Range 16 Terrain Scan Density 10 ECM Strength 1 Armor Coverage 150 Evasion (%) 62 Recoil Reduction 2 Item Schematics ----------------- None Robot Schematics ------------------ None Fabricated ------------ Nothing Repaired ---------- Nothing Studied --------- None Alien Tech Used ----------------- None Achievements -------------- Fist Fight Maybe Next Time I'll Detach My Launcher Unlikely Earthworm Challenges ------------ None Game ------ Seed ArmorShockboltAirjet Manual? 0 Play Time 00:22:24 Cumulative 4.1 hours Start 2025.12.03 @ 22:17:20 End 2025.12.03 @ 22:37:07 Sessions 1 Manual Loads 0 Difficulty Rogue Special Mode None Game No. 9 Rogue 9 Adventurer 0 Explorer 0 Win Type - Total 0 Types 0/0/0/0/0/0/0/0/0/0 Lore% 3 Gallery% 6 Achievement% 10 Wizard Run 0 Options --------- Layout 1 ASCII 0 Keyboard 0 Movement Mouse Keybinds 0 Fullscreen 2 Font 24/Proggy Map View 50x35 Zoom Use 0% Tactical HUD 1 Map Filters NONE Filters NONE Steam 1 RUN: 0ec8bb1c-c1b5-4f6c-99b4-a6aecaba93e0